[Event "Grand Prix Romania 1st Stage 2024"]
[Site "Bucuresti"]
[Date "2024.03.23"]
[Round "4.13"]
[White "Fridman, Daniel"]
[Black "Ghimpu, Samuel-Timotei"]
[Result "0-1"]
[ECO "D02"]
[WhiteElo "2590"]
[BlackElo "2467"]
[Annotator "TA"]
[PlyCount "116"]
[EventDate "2024.03.20"]
[EventType "swiss"]
[EventCountry "ROU"]
[SourceTitle "playchess.com"]
[Source "ChessBase"]
[SourceQuality "1"]
[TimeControl "900+5"]

{[%evp 53,116,75,75,82,84,74,74,23,22,31,33,0,0,0,0,-120,-127,-137,-100,-120,-126,-245,-140,-223,-232,-252,-244,-450,-451,-402,-262,-289,-220,-209,-217,-212,-196,-251,-251,-251,-189,-189,-189,-391,-378,-497,-458,-1478,-1389,-1397,-1307,-2180,-1856,-3152,-5646,-5169,-4990,-6111,-5483,-4922,-4922,-29982,-29983,-29995,-29996]} 1. Nf3 {[%emt 0:00:02]} d5 {[%emt 0:00:14]} 2. g3 {[%emt 0:00:02]} Nf6 {[%emt 0:00:28]} 3. Bg2 {[%emt 0:00:01]} e6 {[%emt 0:00:06]} 4. d4 {[%emt 0:00:10]} Bd6 {[%emt 0:00:20]} 5. O-O {[%emt 0:00:15]} O-O {[%emt 0:00:04]} 6. c4 {[%emt 0:00:03]} Nc6 {[%emt 0:00:07]} 7. Nbd2 {[%emt 0:00:29]} a5 {[%emt 0:00:05]} 8. b3 {[%emt 0:00:05]} Ne4 {[%emt 0:00:04]} 9. Bb2 {[%emt 0:00:03]} f5 {[%emt 0:00:10]} 10. e3 {[%emt 0:01:02]} b6 {[%emt 0:00:49]} 11. Ne5 {[%emt 0:01:44]} Nxe5 {[%emt 0:01:09]} 12. dxe5 {[%emt 0:00:02]} Bb4 {[%emt 0:00:02]} 13. Nf3 {[%emt 0:00:31]} dxc4 {[%emt 0:03:34]} 14. bxc4 {[%emt 0:00:02]} a4 {[%emt 0:05:04]} 15. a3 {[%emt 0:04:08]} Be7 {[%emt 0:00:26]} 16. Nd4 {[%emt 0:00:07]} Qd7 {[%emt 0:00:05]} 17. Qc2 {[%emt 0:00:17]} Bb7 {[%emt 0:00:42]} 18. Rad1 {[%emt 0:02:32]} Qc8 {[%emt 0:00:01]} 19. Kh1 {[%emt 0:00:49]} Ra5 {[%emt 0:01:00]} 20. g4 {[%emt 0:00:02]} g6 {[%emt 0:01:17]} 21. gxf5 {[%emt 0:00:02]} gxf5 {[%emt 0:00:06]} 22. Rg1 {[%emt 0:00:03]} Kh8 {[%emt 0:00:04]} 23. f3 {[%emt 0:01:18]} Nc5 {[%emt 0:00:30]} 24. f4 {[%emt 0:01:04]} Ne4 {[%emt 0:00:06]} 25. Bf3 {[%emt 0:00:04]} Bh4 {[%emt 0:00:21]} 26. Rdf1 {[%emt 0:00:32]} Rg8 {[%emt 0:00:01]} 27. Rxg8+ $2 {[%emt 0:00:32]} (27. Nxf5 $1 $18 {and the rest is easy.} Rxg1+ (27... exf5 $2 28. Qxe4 Bxe4 29. e6+ $18) 28. Rxg1 Ng3+ (28... exf5 $2 29. Qxe4 h5 30. Qxb7 $18) 29. hxg3 Bxf3+ 30. Kh2) 27... Qxg8 $16 {[%emt 0:00:03] [#]} 28. Nxf5 $1 {[%emt 0:00:45]} exf5 {[%emt 0:00:01]} (28... Nf2+ $2 29. Rxf2 Bxf2 (29... exf5 30. e6+) 30. Qxf2 $18 (30. Bxb7 $2 Qg1#)) 29. e6+ {[%emt 0:00:01]} Bf6 {[%emt 0:00:02]} 30. Bxf6+ {[%emt 0:00:06]} (30. Qxe4 $1 $16 Bxe4 31. Bxf6+ Qg7 32. Bxg7+ Kxg7 33. Bxe4 fxe4 34. f5) 30... Nxf6 $11 {[%emt 0:00:02]} 31. Bxb7 {[%emt 0:00:01]} Qxe6 {[%emt 0:00:02]} 32. Qc3 {[%emt 0:00:11]} Rc5 {[%emt 0:00:16]} 33. Rg1 {[%emt 0:00:23]} Rxc4 {[%emt 0:00:19]} (33... Qxc4 34. Qxf6#) 34. Qe5 {[%emt 0:00:08]} (34. Qb2 $11 {remains equal.}) 34... Qxe5 $17 35. fxe5 {[%emt 0:00:02]} Ng4 {[%emt 0:00:11]} 36. e6 {[%emt 0:00:01] [#]} Rc5 $1 {[%emt 0:00:05]} (36... Nxe3 37. e7 Ng4 38. e8=Q+ (38. e8=R+ Kg7 $18) 38... Kg7 39. Qe7+ Kg6 40. Qe6+ Kg5 41. Qxc4) 37. h3 {[%emt 0:00:16]} (37. e4 $17 {was called for.} Nf2+ (37... Rc2 $2 38. Rxg4 fxg4 39. e7 $18) 38. Kg2 Nxe4 39. Kf3) 37... Nf6 {[%emt 0:00:05]} (37... Nxe3 $19 38. Re1 Re5) 38. Bc8 {[%emt 0:00:07]} (38. Kh2 $17) 38... Re5 $19 {[%emt 0:00:05]} 39. Rc1 {[%emt 0:00:03]} c5 {[%emt 0:00:01]} (39... Rxe3 40. Rxc7 Rxh3+ (40... Rxa3 $2 41. Kg2 $19) 41. Kg2 Rxa3 42. Rf7 $11) 40. Rc4 $2 {[%emt 0:00:03]} (40. Kg1 {is a better defense.}) 40... b5 $19 {[%emt 0:00:04]} (40... Rxe3 $2 41. Rxa4 Nd5 (41... Rxh3+ 42. Kg2 $17) 42. Kg1 $19) 41. Rc1 {[%emt 0:00:06]} Kg7 {[%emt 0:00:05]} (41... Rxe3 42. Rxc5 f4 (42... Rxa3 43. Rxb5 Rc3 44. Rxf5 $11) (42... Rxh3+ 43. Kg2 $15) 43. Rxb5 $15) (41... c4 42. Bd7 $19) 42. Bd7 {[%emt 0:00:06]} b4 {[%emt 0:00:05]} (42... Rxe3 43. Bxb5 Rxe6 (43... Rxh3+ 44. Kg2 $11) (43... Rxa3 44. Rxc5 Ra1+ 45. Kg2 $11) 44. Rxc5 $11) 43. axb4 {[%emt 0:00:03]} cxb4 {[%emt 0:00:02]} 44. Bxa4 {[%emt 0:00:01]} Rxe6 {[%emt 0:00:02]} 45. Rb1 {[%emt 0:00:03]} (45. Rc5 $142) 45... Rxe3 $19 {[%emt 0:00:06]} 46. Rxb4 {[%emt 0:00:05]} Rxh3+ {[%emt 0:00:02]} 47. Kg2 {[%emt 0:00:01]} Rd3 {[%emt 0:00:07]} 48. Bc6 $2 {[%emt 0:00:19]} (48. Rc4) 48... Kg6 $19 {[%emt 0:00:07]} 49. Bf3 {[%emt 0:00:06]} Kg5 {[%emt 0:00:03]} 50. Rb7 {[%emt 0:00:05]} (50. Be2 $142 Re3 51. Kf2) 50... h5 $19 {[%emt 0:00:09]} 51. Be2 {[%emt 0:00:01]} Re3 {[%emt 0:00:12]} 52. Kf2 {[%emt 0:00:01]} Kf4 {[%emt 0:00:02]} 53. Kf1 {[%emt 0:00:08]} Ne4 {[%emt 0:00:07]} 54. Bd1 {[%emt 0:00:06]} h4 {[%emt 0:00:05]} 55. Rh7 {[%emt 0:00:02]} h3 {[%emt 0:00:04]} 56. Rh8 {[%emt 0:00:09]} Rg3 {[%emt 0:00:05]} 57. Be2 {[%emt 0:00:07]} Ke3 {[%emt 0:00:02]} 58. Re8 {[%emt 0:00:04]} h2 {[%emt 0:00:02]} 0-1

[Event "Grand Prix Romania 1st Stage 2024"]
[Site "Bucuresti"]
[Date "2024.03.23"]
[Round "4.14"]
[White "Bologan, Victor"]
[Black "Filip, Lucian-Ioan"]
[Result "1-0"]
[ECO "C11"]
[WhiteElo "2594"]
[BlackElo "2359"]
[Annotator "TA"]
[PlyCount "53"]
[EventDate "2024.03.20"]
[EventType "swiss"]
[EventCountry "ROU"]
[SourceTitle "playchess.com"]
[Source "ChessBase"]
[SourceQuality "1"]
[TimeControl "900+5"]

{[%evp 15,53,0,31,50,27,31,41,35,47,31,31,22,87,93,103,77,54,13,35,49,24,0,256,243,256,256,563,384,569,405,944,887,927,906,950,934,1226,977,1057,1043]} 1. e4 {[%emt 0:00:01]} e6 {[%emt 0:00:02]} 2. d4 {[%emt 0:00:05]} d5 {[%emt 0:00:01]} 3. Nc3 {[%emt 0:00:02]} Nf6 {[%emt 0:00:01]} 4. e5 {[%emt 0:00:03]} Nfd7 {[%emt 0:00:01]} 5. Nce2 {[%emt 0:00:02]} c5 {[%emt 0:00:05]} 6. c3 {[%emt 0:00:01]} Nc6 {[%emt 0:00:10]} 7. f4 {[%emt 0:00:04]} b5 {[%emt 0:02:20]} 8. a3 {[%emt 0:00:02]} a5 {[%emt 0:00:03]} 9. Nf3 {[%emt 0:00:02][%cal Of4f5]} Ba6 {[%emt 0:00:36] [#]} 10. f5 $1 {[%emt 0:00:03]} exf5 {[%emt 0:01:04]} 11. Nf4 {[%emt 0:00:03] White is slightly better.} Nb6 {[%emt 0:00:14]} 12. Bd3 {[%emt 0:00:41]} g6 {[%emt 0:00:34]} 13. O-O {[%emt 0:00:10] aiming for e6.} (13. dxc5 {keeps more tension.} Na4 14. Nd4 Rc8 15. e6) 13... Be7 {[%emt 0:00:11] [#]} (13... c4 $11 {keeps the balance.}) 14. dxc5 $1 $16 {[%emt 0:00:56] White is more active.} Bxc5+ {[%emt 0:00:09]} 15. Kh1 {[%emt 0:00:02][%cal Oa3a4]} O-O {[%emt 0:00:04]} 16. Qe2 {[%emt 0:00:22][%cal Oa3a4] Hoping for a4!} Re8 $1 {[%emt 0:03:54]} 17. Bxb5 {[%emt 0:01:14]} Qc8 {[%emt 0:00:16][%cal Oc6e5]} 18. Rd1 {[%emt 0:03:09][%cal Ob2b4] Threatens to win with b4!} Rd8 $2 {[%emt 0:02:19][%mdl 8192]} (18... Bf8 $11 {and Black stays safe.}) 19. e6 $18 {[%emt 0:00:19]} Re8 {[%emt 0:01:13][%cal Rf7e6]} 20. b4 {[%emt 0:04:02]} ({Not} 20. Nxd5 Rxe6 (20... fxe6 $2 {perishes.} 21. Nf6+ Kg7 22. Nxe8+ Qxe8 23. Bxa6 $18) 21. Bxa6 Rxa6 $11) 20... Bxb5 $2 {[%emt 0:02:40]} (20... axb4 {is more resistant.} 21. cxb4 Bxb4 22. axb4 Bxb5 23. Rxa8 (23. Qxb5 Rxa1 24. exf7+ Kxf7 $18) 23... Bxe2 24. Rxc8 Nxc8 25. Nxe2 Nxb4 26. exf7+ Kxf7) 21. Qxb5 {[%emt 0:00:06]} Bf2 {[%emt 0:00:07]} (21... fxe6 $142 22. Qxc5 Na4) 22. Qf1 {[%emt 0:01:20]} Na4 {[%emt 0:00:23]} (22... fxe6 $142 23. Qxf2 Nc4) 23. exf7+ {[%emt 0:00:16] White is clearly winning.} Kxf7 {[%emt 0:00:03]} 24. Ng5+ {[%emt 0:00:45]} Kg8 {[%emt 0:00:09]} 25. Nxd5 {[%emt 0:00:11]} Nxc3 {[%emt 0:00:25]} 26. Nxc3 {[%emt 0:00:11] Black must now prevent Qc4+.} Bd4 {[%emt 0:00:02]} 27. Qc4+ {[%emt 0:00:27] Weighted Error Value: White=0.41/Black=0.83.  Loses game:     	---       	Black=1      Mistake:       	---       	Black=4      Inaccurate:     	White=2     	---        OK:         	White=5     	Black=6      Best:        	White=3     	Black=1      Strong:       	White=1     	Black=1} 1-0

[Event "Grand Prix Romania 1st Stage 2024"]
[Site "Bucuresti"]
[Date "2024.03.23"]
[Round "4.15"]
[White "Bulau, Andrei-Cristian"]
[Black "Kozak, Adam"]
[Result "0-1"]
[ECO "E39"]
[WhiteElo "2142"]
[BlackElo "2607"]
[Annotator "TA"]
[PlyCount "164"]
[EventDate "2024.03.20"]
[EventType "swiss"]
[EventCountry "ROU"]
[SourceTitle "playchess.com"]
[Source "ChessBase"]
[SourceQuality "1"]
[TimeControl "900+5"]

{[%evp 46,164,0,0,0,-4,139,0,0,0,0,0,0,0,0,0,0,0,0,0,87,86,85,93,113,103,115,0,4,1,3,0,0,0,0,0,0,0,0,0,0,0,0,0,0,0,0,0,0,0,0,-8,-8,-12,-12,-12,-12,-12,-12,-12,-12,-12,-12,-12,-12,-12,-12,-12,-12,-12,-12,-12,-12,-12,-12,-12,-12,-12,-12,-12,-12,-12,-12,-15,-15,-15,-15,-15,-15,-15,-15,-29946,-29950,-29941,-12846,-12797,-12798,-12803,-12796,-12504,-12504,-11662,-9090,-6488,-5559,-29972,-29973,-29973,-29974,-29974,-29975,-29976,-29976,-29976,-29977,-29977,-29977,-29981,-29982,-29983,-29982]} 1. d4 {[%emt 0:00:02]} Nf6 {[%emt 0:00:04]} 2. c4 {[%emt 0:00:03]} e6 {[%emt 0:00:01]} 3. Nc3 {[%emt 0:00:02]} Bb4 {[%emt 0:00:02]} 4. Qc2 {[%emt 0:00:14]} c5 {[%emt 0:00:05]} 5. dxc5 {[%emt 0:00:08]} O-O {[%emt 0:00:12]} 6. Nf3 {[%emt 0:00:02]} Na6 {[%emt 0:00:37]} 7. g3 {[%emt 0:00:03]} Nxc5 {[%emt 0:00:01]} 8. Bg2 {[%emt 0:00:02]} Nce4 {[%emt 0:00:32]} 9. O-O {[%emt 0:00:03]} Bxc3 {[%emt 0:00:03]} 10. bxc3 {[%emt 0:00:09]} Qc7 {[%emt 0:00:01]} 11. Bf4 {[%emt 0:01:01]} Qc5 {[%emt 0:01:22]} 12. Ne5 {[%emt 0:01:38]} d6 {[%emt 0:02:08]} 13. Nd3 {[%emt 0:02:57]} Qxc4 {[%emt 0:01:29]} 14. Nb2 {[%emt 0:00:08]} Qc6 {[%emt 0:00:04]} 15. Rfd1 {[%emt 0:01:36]} d5 {[%emt 0:00:23]} 16. c4 {[%emt 0:00:09]} Re8 {[%emt 0:02:05]} 17. Qb3 {[%emt 0:01:21]} Qc5 {[%emt 0:01:41]} 18. Be3 {[%emt 0:00:51]} Qe7 {[%emt 0:00:02]} 19. Rac1 {[%emt 0:00:55]} b6 {[%emt 0:00:32]} 20. cxd5 {[%emt 0:01:37]} exd5 {[%emt 0:00:03]} 21. Nd3 {[%emt 0:00:07]} Ba6 {[%emt 0:00:20]} 22. Bd4 {[%emt 0:00:52]} Rac8 {[%emt 0:03:47]} 23. Qb2 {[%emt 0:01:05]} Qf8 {[%emt 0:01:09]} 24. Rxc8 {[%emt 0:00:38]} Rxc8 {[%emt 0:00:04]} 25. Nf4 {[%emt 0:00:27]} Bc4 {[%emt 0:00:12] [#]} (25... Qe7 $11 {keeps the balance.}) 26. Nxd5 {[%emt 0:00:44]} (26. f3 $1 $16 {[%mdl 512]}) 26... Bxd5 $11 {[%emt 0:00:07]} 27. Bxf6 {[%emt 0:00:01]} Nxf6 {[%emt 0:00:04]} 28. Bxd5 {[%emt 0:00:01]} Nxd5 {[%emt 0:00:04]} 29. Rxd5 {[%emt 0:00:02]} Qe7 {[%emt 0:00:08]} 30. Qd2 {[%emt 0:00:24]} h6 {[%emt 0:00:07]} 31. Rd7 {[%emt 0:00:02]} Qe4 {[%emt 0:00:04]} 32. Rxa7 {[%emt 0:00:08]} Qb1+ {[%emt 0:00:05]} (32... Rc2 $11 33. Re7 Rxd2 34. Rxe4 Rxa2) 33. Kg2 $16 {[%emt 0:00:02]} Qe4+ {[%emt 0:00:01]} 34. f3 {[%emt 0:00:02]} Qf5 {[%emt 0:00:06]} 35. Re7 {[%emt 0:00:16]} b5 {[%emt 0:00:08]} 36. Qd7 {[%emt 0:00:03]} (36. Qd4 $16) 36... Qxd7 $11 {[%emt 0:00:02]} 37. Rxd7 {[%emt 0:00:02]} Rc2 {[%emt 0:00:01]} 38. Rb7 {[%emt 0:00:07]} Rxe2+ {[%emt 0:00:01]} 39. Kh3 {[%emt 0:00:01]} Re5 {[%emt 0:00:13]} 40. Kg4 {[%emt 0:00:04]} f6 {[%emt 0:00:05]} 41. f4 {[%emt 0:00:03]} Rc5 {[%emt 0:00:02]} 42. Kf3 {[%emt 0:00:05]} h5 {[%emt 0:00:04]} 43. Ke4 {[%emt 0:00:02]} h4 {[%emt 0:00:13]} 44. gxh4 {[%emt 0:00:12]} Kh7 {[%emt 0:00:02]} 45. Kd4 {[%emt 0:00:01]} Rc2 {[%emt 0:00:01]} 46. Rxb5 {[%emt 0:00:02]} Rxa2 {[%emt 0:00:01]} 47. Ke4 {[%emt 0:00:10]} Rxh2 {[%emt 0:00:04]} 48. h5 {[%emt 0:00:01]} Kh6 {[%emt 0:00:03]} 49. Kf3 {[%emt 0:00:09]} Rxh5 {[%emt 0:00:04]} 50. Rb8 {[%emt 0:00:01]} Ra5 {[%emt 0:00:01]} 51. Rb7 {[%emt 0:00:01]} Kg6 {[%emt 0:00:08]} 52. Kg3 {[%emt 0:00:05]} Ra3+ {[%emt 0:00:01]} 53. Kg4 {[%emt 0:00:05]} Rc3 {[%emt 0:00:17]} 54. Ra7 {[%emt 0:00:02]} Rb3 {[%emt 0:00:03]} 55. Rc7 {[%emt 0:00:01]} Rb4 {[%emt 0:00:13]} 56. Ra7 {[%emt 0:00:05]} Kh6 {[%emt 0:00:02]} 57. Kg3 {[%emt 0:00:06]} Rb3+ {[%emt 0:00:02]} 58. Kg4 {[%emt 0:00:01]} Rb1 {[%emt 0:00:10]} 59. Ra6 {[%emt 0:00:09]} Rg1+ {[%emt 0:00:01]} 60. Kf3 {[%emt 0:00:02]} Rf1+ {[%emt 0:00:08]} 61. Kg3 {[%emt 0:00:02]} Kg6 {[%emt 0:00:07]} 62. Ra5 {[%emt 0:00:04]} Rb1 {[%emt 0:00:04]} 63. Kg4 $1 {[%emt 0:00:04]} f5+ {[%emt 0:00:06]} 64. Kh4 {[%emt 0:00:07]} Rg1 {[%emt 0:00:03]} 65. Ra6+ {[%emt 0:00:08]} Kh7 {[%emt 0:00:04]} 66. Kh3 {[%emt 0:00:25]} Rg4 {[%emt 0:00:02]} 67. Ra4 {[%emt 0:00:02]} Kh6 {[%emt 0:00:03]} 68. Rb4 $2 {[%emt 0:00:03][%mdl 8192] [#]} (68. Rc4 $11 g6 69. Rd4) 68... g6 $1 {[%emt 0:00:03]} 69. Ra4 {[%emt 0:00:01]} Kh5 {[%emt 0:00:02]} 70. Rb4 {[%emt 0:00:12]} g5 {[%emt 0:00:01]} 71. Rb8 {[%emt 0:00:03]} Rxf4 {[%emt 0:00:02]} ({Worse is} 71... gxf4 72. Rh8+ Kg6 73. Rg8+ Kh5 74. Rh8+ Kg6 75. Rg8+ Kh5 76. Rh8+ $11) 72. Rh8+ {[%emt 0:00:01]} Kg6 {[%emt 0:00:01]} 73. Rg8+ {[%emt 0:00:01]} Kf6 {[%emt 0:00:02]} 74. Rf8+ {[%emt 0:00:00]} Kg7 {[%emt 0:00:01]} 75. Re8 {[%emt 0:00:01]} Re4 {[%emt 0:00:01]} 76. Rd8 {[%emt 0:00:01]} Re3+ {[%emt 0:00:04]} 77. Kg2 {[%emt 0:00:01]} Kg6 {[%emt 0:00:01]} 78. Kf2 {[%emt 0:00:01]} f4 {[%emt 0:00:01]} 79. Rd6+ {[%emt 0:00:01]} Kf5 {[%emt 0:00:02]} 80. Rd8 {[%emt 0:00:00]} Kg4 {[%emt 0:00:00]} 81. Rg8 {[%emt 0:00:01]} Rb3 {[%emt 0:00:03]} 82. Kg2 {[%emt 0:00:02]} Rb2+ {[%emt 0:01:07]} 0-1

[Event "Grand Prix Romania 1st Stage 2024"]
[Site "Bucuresti"]
[Date "2024.03.23"]
[Round "4.16"]
[White "Gavrilescu, David"]
[Black "Toma, Radu-Cristian"]
[Result "1-0"]
[ECO "B82"]
[WhiteElo "2524"]
[BlackElo "2386"]
[Annotator "TA"]
[PlyCount "57"]
[EventDate "2024.03.20"]
[EventType "swiss"]
[EventCountry "ROU"]
[SourceTitle "playchess.com"]
[Source "ChessBase"]
[SourceQuality "1"]
[TimeControl "900+5"]

{[%evp 17,57,43,28,34,85,72,76,30,47,0,0,-40,-43,-45,-51,-45,-24,-44,77,83,66,77,54,0,560,559,569,595,581,591,1216,1188,1703,1096,2122,2177,1597,1189,1072,921,29990,29991]} 1. e4 {[%emt 0:00:02]} c5 {[%emt 0:00:01]} 2. Nf3 {[%emt 0:00:02]} e6 {[%emt 0:00:04]} 3. d4 {[%emt 0:00:02]} cxd4 {[%emt 0:00:02]} 4. Nxd4 {[%emt 0:00:02]} Nc6 {[%emt 0:00:01]} 5. a3 {[%emt 0:00:03]} Nf6 {[%emt 0:00:18]} 6. Nc3 {[%emt 0:00:02]} Qc7 {[%emt 0:01:02]} 7. Be3 {[%emt 0:00:29]} a6 {[%emt 0:00:40]} 8. f4 {[%emt 0:00:02]} d6 {[%emt 0:00:30]} 9. Qf3 {[%emt 0:00:04]} Be7 {[%emt 0:00:29]} 10. O-O-O {[%emt 0:00:03]} Rb8 {[%emt 0:00:10]} (10... O-O $14) 11. g4 {[%emt 0:02:00]} Nd7 {[%emt 0:00:30]} 12. Bg2 {[%emt 0:01:31] White has more active pieces.} (12. g5 $16) 12... b5 $11 {[%emt 0:01:14]} 13. Nxc6 {[%emt 0:00:18]} (13. g5 $14) 13... Qxc6 {[%emt 0:00:03]} 14. Ba7 {[%emt 0:00:11]} Rb7 {[%emt 0:00:50]} 15. Bd4 {[%emt 0:00:02]} a5 {[%emt 0:00:40] Strongly threatening ...b4.} 16. Rhe1 {[%emt 0:01:09][%cal Oc3d5]} b4 {[%emt 0:00:14]} (16... e5 17. Bf2 $14) 17. Nd5 {[%emt 0:00:02]} (17. Bxg7 Rg8 18. Bd4 bxc3 19. Bxc3 Nc5 $17) 17... bxa3 {[%emt 0:00:59]} (17... exd5 $15 {stays ahead.} 18. exd5 (18. Bxg7 Rc7 $17) 18... Qc7) 18. Qxa3 $16 {[%emt 0:00:07]} (18. Bxg7 axb2+ (18... Rxb2 19. Re2 $11) 19. Kb1 Ne5 (19... Qa4 $2 20. Bxb2 Rxb2+ 21. Kxb2 $17) 20. Bxe5 (20. fxe5 $2 Qa4 $19) 20... dxe5 $19) 18... exd5 {[%emt 0:00:11]} 19. exd5 {[%emt 0:00:12]} Qc7 {[%emt 0:01:28]} 20. Rd3 {[%emt 0:00:25]} ({White should play} 20. Bxg7 $14 Rg8 21. Bd4) 20... Rb4 $2 {[%emt 0:00:29][%mdl 8192]} (20... Kd8 $1 $11 {and Black stays safe.}) 21. Bxg7 $18 {[%emt 0:00:11]} ({Weaker is} 21. Rc3 Qd8 22. Bxg7 Rg8 $14) 21... Rg8 {[%emt 0:00:02] [#]} 22. Rde3 $1 {[%emt 0:00:02]} Kd8 {[%emt 0:04:10]} 23. Rxe7 {[%emt 0:00:06]} Rxf4 {[%emt 0:00:02]} 24. Qe3 {[%emt 0:00:15] Re8+ would kill now.} Qc4 {[%emt 0:00:03]} 25. b3 {[%emt 0:00:17]} Qb4 {[%emt 0:00:02]} 26. Bc3 {[%emt 0:00:04]} Qa3+ {[%emt 0:00:04]} 27. Bb2 {[%emt 0:00:01] This pair of bishops is nice.} Qb4 {[%emt 0:00:01]} 28. c3 {[%emt 0:00:03]} Qb6 {[%emt 0:00:49]} 29. Rxd7+ {[%emt 0:00:04] Weighted Error Value: White=0.18 (very precise) /Black=0.78.  Loses game:     	---       	Black=1      Mistake:       	White=3     	Black=2      Inaccurate:     	White=1     	Black=2      OK:         	White=5     	Black=5      Best:        	White=1     	Black=2      Strong:       	White=1     	---} 1-0

[Event "Grand Prix Romania 1st Stage 2024"]
[Site "Bucuresti"]
[Date "2024.03.23"]
[Round "4.17"]
[White "Nedelcu, Teodor-Cosmin"]
[Black "Lupulescu, Constantin"]
[Result "1/2-1/2"]
[ECO "D51"]
[WhiteElo "2306"]
[BlackElo "2579"]
[Annotator "TA"]
[PlyCount "105"]
[EventDate "2024.03.20"]
[EventType "swiss"]
[EventCountry "ROU"]
[SourceTitle "playchess.com"]
[Source "ChessBase"]
[SourceQuality "1"]
[TimeControl "900+5"]

{[%evp 11,105,13,16,9,13,-9,-10,-16,-4,-11,-10,-7,0,0,14,18,18,14,18,10,6,0,0,3,7,0,1,3,11,0,0,0,0,0,0,-14,-25,-52,0,0,0,0,0,0,-2,-6,-4,-6,-5,-5,-4,-3,-4,-8,-7,-10,0,0,0,0,0,-11,0,-12,-15,-12,-9,-16,0,0,0,-31,-16,-20,-18,-16,0,-20,-17,-16,-8,-8,0,-18,0,-71,-72,-81,0,0,0,-94,0,0,0,-72]} 1. d4 {[%emt 0:00:01]} Nf6 {[%emt 0:00:01]} 2. c4 {[%emt 0:00:02]} e6 {[%emt 0:00:01]} 3. Nc3 {[%emt 0:00:01]} d5 {[%emt 0:00:02]} 4. Bg5 {[%emt 0:00:03]} Nbd7 {[%emt 0:00:53]} 5. e3 {[%emt 0:00:02]} c6 {[%emt 0:00:03]} 6. Bd3 {[%emt 0:00:04]} Qa5 {[%emt 0:00:31]} 7. Bxf6 {[%emt 0:00:26]} Nxf6 {[%emt 0:00:03]} 8. Nge2 {[%emt 0:00:02]} Be7 {[%emt 0:00:57]} 9. O-O {[%emt 0:00:03]} O-O {[%emt 0:00:02]} 10. a3 {[%emt 0:00:08]} dxc4 {[%emt 0:00:36]} 11. Bxc4 {[%emt 0:00:01]} c5 {[%emt 0:00:01]} 12. d5 {[%emt 0:00:58]} exd5 {[%emt 0:01:39]} 13. Nxd5 {[%emt 0:00:05]} Nxd5 {[%emt 0:00:04]} 14. Bxd5 {[%emt 0:00:01]} Qc7 {[%emt 0:01:24]} 15. Rc1 {[%emt 0:00:29]} Bd7 {[%emt 0:00:20]} 16. b4 {[%emt 0:00:19]} Rad8 {[%emt 0:01:21]} 17. Qb3 {[%emt 0:00:27]} b6 {[%emt 0:00:38]} 18. Rfd1 {[%emt 0:00:20]} Qe5 {[%emt 0:00:53]} 19. bxc5 {[%emt 0:00:39]} Bxc5 {[%emt 0:00:12]} 20. Nf4 {[%emt 0:00:02]} Qe7 {[%emt 0:02:57]} 21. Bf3 {[%emt 0:00:42] Gegen Bg4 gerichtet.} Bf5 {[%emt 0:01:05]} 22. Nd5 {[%emt 0:00:10]} Qe5 {[%emt 0:00:02]} 23. Nb4 {[%emt 0:00:39] Droht stark Rxd8.} Be6 {[%emt 0:00:43] Ein starkes Läuferpaar.} 24. Qa4 {[%emt 0:00:09]} Bxb4 {[%emt 0:00:31]} (24... Rxd1+ $15 25. Rxd1 Qc3 26. Qxa7 Bxb4 27. axb4 Qxb4) 25. axb4 $11 {[%emt 0:00:13]} a5 {[%emt 0:00:05]} 26. bxa5 {[%emt 0:00:14]} Qxa5 {[%emt 0:00:09]} 27. Qxa5 {[%emt 0:01:44]} bxa5 {[%emt 0:00:01]} 28. Rxd8 {[%emt 0:00:22]} Rxd8 {[%emt 0:00:01][%mdl 4096] Endspiel. KRB-KRB} 29. Ra1 {[%emt 0:00:18]} Rc8 {[%emt 0:00:10]} 30. Kf1 {[%emt 0:00:14]} Rc5 {[%emt 0:00:02]} 31. Ke2 {[%emt 0:00:04]} Kf8 {[%emt 0:00:04]} 32. Kd3 {[%emt 0:00:03]} Ke7 {[%emt 0:00:04]} 33. Rb1 {[%emt 0:00:48]} Bf5+ {[%emt 0:00:30]} 34. e4 {[%emt 0:00:06]} Be6 {[%emt 0:00:01]} 35. Bd1 {[%emt 0:00:17]} Rc7 {[%emt 0:00:35]} 36. f4 {[%emt 0:00:37]} g6 {[%emt 0:00:20]} 37. g4 {[%emt 0:00:59]} Bd7 {[%emt 0:00:06]} 38. Ra1 {[%emt 0:00:27]} Ra7 {[%emt 0:00:01]} 39. Kc4 {[%emt 0:00:19]} Rc7+ {[%emt 0:00:03]} 40. Kd4 {[%emt 0:00:25]} a4 {[%emt 0:00:01]} 41. Ra2 {[%emt 0:00:38]} Bb5 {[%emt 0:00:01]} 42. Bc2 {[%emt 0:01:45]} Rc4+ {[%emt 0:00:01]} 43. Kd5 {[%emt 0:00:10] [#] Und Bd3 würde nun gewinnen.} Rc7 {[%emt 0:00:15]} 44. Kd4 {[%emt 0:00:02]} f6 {[%emt 0:00:07]} 45. h4 {[%emt 0:00:26]} Rc4+ {[%emt 0:00:13]} 46. Kd5 {[%emt 0:00:02]} Rc7 {[%emt 0:00:01] [#] Und jetzt ...Bc4+ wäre schön.} 47. Kd4 {[%emt 0:00:01]} Kd6 {[%emt 0:00:35]} 48. Rb2 {[%emt 0:01:04]} (48. g5 $11 {hält das Gleichgewicht.}) 48... Rc4+ $17 {[%emt 0:00:05]} 49. Ke3 {[%emt 0:00:24][%cal Oc2d3] Zielt auf Bd3! ab.} Rc3+ {[%emt 0:00:23]} (49... Kc5 $17 {...a3 wäre nun fies.} 50. Bd3 a3 51. Bxc4 (51. Rb3 $2 a2 $19) 51... axb2) 50. Kd4 {[%emt 0:00:04]} (50. Kd2 $5 Rc5 $8 51. g5 fxg5 52. hxg5 $14) 50... Rc4+ {[%emt 0:00:01]} (50... Rc5 $11) 51. Ke3 {[%emt 0:00:01][%cal Oc2d3]} Rc3+ {[%emt 0:00:12]} (51... Kc5 $17 {Droht ...a3 und aus.} 52. Bd3 a3 53. Bxc4 (53. Rb3 $2 a2 $19) 53... axb2) 52. Kd4 {[%emt 0:00:01]} (52. Kd2 $5 Rc5 $8 53. g5 fxg5 54. e5+ Kc7 55. hxg5 $11) 52... Rc4+ {[%emt 0:00:02]} (52... Rc5 $11) 53. Ke3 {Gewichteter Fehlerwert: Weiß=0.07 (makellos) /Schwarz=0.09 (makellos) .  Fehler:       	Weiß=1     	Schwarz=5     Ungenau:       	Weiß=2     	---        OK:         	Weiß=17    	Schwarz=18    Bester:       	Weiß=3     	Schwarz=1} 1/2-1/2